bitfinex-derivatives/quotes_ETHF0:USTF0_20250817
["timestamp","ask_amount","ask_price","bid_price","bid_amount"]
[1755423379817,0.9464,4540.0,4539.9,1.4121]
[1755423380019,1.7465,4540.0,4539.9,1.4121]
[1755423380219,1.7465,4540.0,4539.9,2.3585]
[1755423380418,2.3331,4540.0,4539.9,2.3585]
[1755423381524,2.3331,4540.0,4539.9,1.5369]
[1755423381723,2.3331,4540.0,4539.9,2.3585]
[1755423382321,0.5625,4540.0,4539.9,2.3585]
[1755423382626,0.5625,4540.0,4539.7,0.44041]
[1755423382627,2.3331,4540.3,4540.2,2.3585]
[1755423383818,2.3331,4540.3,4540.0,0.44038]
[1755423384128,0.8221,4540.4,4539.6,3.2078]
[1755423384323,1.3626,4539.7,4539.6,1.7691]
[1755423384622,1.7465,4539.7,4539.6,1.7691]
[1755423384823,1.7465,4539.7,4539.6,2.3585]
[1755423385619,0.2367,4540.0,4539.9,0.6321]
[1755423385820,3.2078,4540.1,4540.0,1.8939]
[1755423386024,0.3512,4540.5,4540.0,1.8939]
[1755423386025,2.3331,4540.5,4540.4,1.8939]
[1755423386425,2.3331,4540.5,4540.4,2.3585]
[1755423386728,1.3626,4540.5,4540.4,2.3585]
[1755423386923,1.7465,4540.5,4540.4,2.3585]
[1755423387323,2.3331,4540.5,4540.4,2.3585]
[1755423387728,1.2976,4540.5,4540.4,2.3585]
[1755423388022,2.3331,4540.5,4540.4,2.3585]
[1755423388424,0.9464,4540.3,4540.2,1.2215]
[1755423388629,0.3839,4539.9,4539.8,0.8278]
[1755423388821,2.3331,4539.9,4539.8,2.7989]
[1755423389221,2.3331,4539.9,4539.8,1.8939]
[1755423389430,2.3331,4539.9,4539.8,2.3585]
[1755423389623,1.7465,4539.9,4539.8,2.3585]
[1755423389824,1.7465,4539.9,4539.6,3.2078]
[1755423390031,2.3331,4539.8,4539.7,1.2215]
[1755423390224,2.3331,4539.8,4539.7,1.5369]
[1755423390425,2.3331,4539.8,4539.7,2.3585]
[1755423391121,1.7465,4539.8,4539.7,1.5369]
[1755423391326,2.3331,4539.8,4539.7,2.3585]
[1755423391529,1.7465,4539.8,4539.7,2.3585]
[1755423391827,1.0114,4539.8,4539.7,2.3585]
[1755423392632,0.2367,4540.0,4539.9,2.3585]
[1755423392828,1.0114,4540.2,4540.1,0.9475]
[1755423393131,1.0114,4540.2,4540.1,2.3585]
[1755423393726,1.3626,4540.2,4540.1,2.3585]
[1755423394524,1.3626,4540.2,4540.1,1.5369]
[1755423394525,2.3331,4540.2,4540.1,1.5369]
[1755423395036,2.3331,4540.2,4540.1,2.3585]
[1755423396231,2.52431165,4540.2,4540.1,2.3585]
[1755423396431,2.52431165,4540.2,4540.1,1.8939]
[1755423396825,2.52431165,4540.2,4540.1,2.3585]
[1755423397726,0.8001,4540.1,4539.6,0.44042]
[1755423397929,0.8001,4540.0,4539.9,0.9475]
[1755423398126,0.5625,4540.0,4539.9,2.3585]
[1755423398334,4.9543,4540.3,4540.2,0.9475]
[1755423398529,4.93206999,4540.3,4539.2,1.054]
[1755423398734,4.9543,4539.7,4539.6,0.6321]
[1755423399034,2.3331,4539.1,4539.0,2.3585]
[1755423399436,1.7465,4539.1,4539.0,2.3585]
[1755423399633,0.5625,4538.6,4538.5,0.9475]
[1755423399830,2.3331,4538.6,4537.9,3.2078]
[1755423400029,0.19140244,4538.5,4537.4,3.2078]
[1755423400231,0.77800772,4538.4,4537.4,3.2078]
[1755423400531,3.2078,4538.6,4537.5,0.8216]
[1755423400532,0.9378,4538.2,4537.5,0.8216]
[1755423400733,2.3331,4538.1,4538.0,2.3585]
[1755423401129,2.3331,4538.1,4537.4,3.2078]
[1755423401332,1.7465,4537.6,4537.5,2.3585]
[1755423401932,0.5625,4537.6,4537.5,2.79913]
[1755423402127,0.8001,4538.0,4536.8,3.2078]
[1755423402128,0.5625,4538.0,4536.8,3.2078]
[1755423402335,0.64007974,4537.9,4537.4,2.3585]
[1755423402532,3.4445,4538.0,4537.9,2.3585]
[1755423402838,3.4445,4538.0,4536.8,3.2078]
[1755423402839,3.39895732,4538.0,4537.8,1.0967]
[1755423403133,4.9543,4538.0,4537.9,2.3585]
[1755423403329,3.2078,4538.0,4537.9,2.3585]
[1755423403540,4.5704,4538.8,4538.7,0.9475]
[1755423403736,5.14533048,4538.8,4538.7,2.3585]
[1755423404440,1.93753048,4538.8,4538.7,2.3585]
[1755423404735,5.14533048,4538.8,4538.7,2.3585]
[1755423404932,3.39883048,4538.8,4538.7,2.3585]
[1755423406532,3.39883048,4538.8,4538.7,2.3805]
[1755423406738,0.19103048,4538.8,4538.7,2.3585]
[1755423406942,0.19103048,4538.8,4538.7,2.3805]
[1755423407133,3.7703,4540.1,4540.0,0.9475]
[1755423407433,3.7703,4540.1,4540.0,2.3585]
[1755423407735,4.1614,4540.1,4539.3,3.2078]
[1755423408034,4.1614,4540.1,4539.2,2.2875]
[1755423408035,1.3695,4539.3,4539.2,2.2875]
[1755423408339,2.3666,4539.3,4539.2,2.2875]
[1755423408539,2.3666,4539.3,4539.2,1.8409]
[1755423408838,2.3666,4539.3,4539.2,1.4868]
[1755423409839,0.9536,4539.1,4539.0,2.2875]
[1755423410039,1.7674,4539.1,4539.0,2.2875]
[1755423411040,2.3666,4539.1,4539.0,2.2875]
[1755423412834,2.3666,4539.1,4539.0,1.8409]
[1755423413036,2.3666,4539.1,4539.0,1.4868]
[1755423413338,2.3666,4539.1,4539.0,1.1848]
[1755423413543,2.3666,4539.1,4539.0,2.2875]
[1755423414042,1.5498,4539.1,4538.6,0.5595]
[1755423414338,3.2078,4539.5,4538.9,1.3602]
[1755423414635,3.2078,4540.1,4540.0,2.2875]
[1755423414836,3.2078,4540.1,4539.3,3.2078]
[1755423415032,0.5557,4539.5,4539.4,2.2875]
[1755423415235,0.4665,4539.9,4539.5,1.3602]
[1755423415443,3.2078,4540.1,4540.0,1.8409]
[1755423415639,3.2078,4540.8,4540.0,1.3822]
[1755423415839,4.23,4540.8,4540.7,2.2875]
[1755423416339,3.7635,4540.8,4540.7,2.2875]
[1755423416541,3.2078,4540.8,4540.7,2.2875]
[1755423416742,3.7635,4541.4,4541.3,1.4868]
[1755423417043,3.7635,4541.4,4541.3,2.2875]
[1755423417234,4.23,4541.4,4541.3,2.2875]
[1755423417539,3.7635,4541.4,4541.3,2.2875]
[1755423417839,3.2078,4541.4,4541.3,2.2875]
[1755423418032,5.5714,4541.4,4540.8,0.5595]
[1755423418233,5.5714,4541.4,4540.8,0.99978]
[1755423418434,5.5714,4541.4,4540.4,3.6544]
[1755423418435,1.7674,4540.9,4540.4,3.6544]
[1755423418638,2.3636,4540.5,4540.4,3.2078]
[1755423419034,0.6426,4540.2,4540.1,0.5595]
[1755423419343,0.6426,4540.2,4539.6,3.2078]
[1755423419344,1.41,4539.8,4539.7,0.5595]
[1755423419537,1.41,4539.8,4539.6,3.2078]
[1755423419738,0.4665,4540.2,4539.6,3.2078]
[1755423419944,0.3473,4540.1,4539.6,3.2078]
[1755423420143,0.3473,4539.6,4538.9,0.5595]
[1755423420443,3.2078,4540.1,4538.9,0.5595]
[1755423420444,0.3473,4540.0,4539.3,0.44042]
[1755423420642,1.41,4540.1,4539.2,0.4466]
[1755423420842,0.9435,4539.8,4539.1,3.2078]
[1755423421149,3.2298,4540.2,4539.2,0.5595]
[1755423421150,1.41,4539.5,4539.2,0.5595]
[1755423421345,1.41,4539.3,4539.2,0.5595]
[1755423421745,20.479,4541.5,4538.6,3.2078]
[1755423421746,1.41,4539.6,4538.6,3.2078]
[1755423422044,1.41,4539.4,4538.6,3.2078]
[1755423422243,1.41,4539.6,4538.6,3.2078]
[1755423422445,0.9435,4539.4,4538.6,3.2078]
[1755423422650,3.2078,4539.7,4538.7,0.9136]
[1755423422841,1.59840381,4539.6,4538.7,0.9136]
[1755423423040,1.0627,4539.4,4538.7,0.9136]
[1755423423243,1.0627,4539.2,4538.7,0.5595]
[1755423423447,1.41,4539.1,4538.7,0.5595]
[1755423423650,1.0627,4538.9,4538.6,3.6544]
[1755423423847,0.5962,4538.9,4538.8,0.5595]
[1755423424048,0.9435,4538.9,4538.8,0.5595]
[1755423424348,1.41,4538.9,4538.8,0.5595]
[1755423425549,2.3636,4538.9,4538.8,0.5595]
[1755423426948,2.3636,4538.9,4538.8,0.805]
[1755423427746,2.3636,4539.6,4539.5,0.6253]
[1755423427943,2.55362778,4539.6,4539.5,1.1848]
[1755423428249,2.55362778,4539.6,4539.5,0.3798]
[1755423428453,1.14362778,4539.6,4539.2,0.8007]
[1755423428652,1.7674,4539.4,4539.3,0.5595]
[1755423428947,2.55362778,4539.4,4539.3,0.5595]
[1755423429149,3.2078,4540.3,4539.6,1.728]
[1755423429353,1.73982257,4540.2,4540.1,0.6253]
[1755423429553,1.73982257,4540.2,4540.1,1.1848]
[1755423429941,2.55362257,4540.2,4540.1,1.1848]
[1755423430146,0.8138,4540.9,4540.5,0.44031]
[1755423430347,0.1899576,4540.8,4540.6,1.3602]
[1755423430550,0.8138,4540.9,4540.8,0.4466]
[1755423430849,1.00373402,4540.9,4540.8,1.3602]
[1755423431748,1.59993402,4540.9,4540.8,1.3602]
[1755423432146,1.00373402,4540.9,4540.8,1.3602]
[1755423432353,0.18993402,4540.9,4540.8,1.3602]
[1755423432555,3.2078,4541.0,4540.9,0.44027]
[1755423432853,3.2078,4541.0,4540.9,2.72777]
[1755423433054,0.5962,4541.3,4540.9,0.9273]
[1755423433241,0.5962,4541.3,4540.2,3.2078]
[1755423433242,1.09301136,4541.2,4541.1,1.8409]
[1755423433447,2.08711136,4541.2,4541.1,1.8409]
[1755423433647,2.08711136,4541.2,4541.1,1.1848]
[1755423433947,2.55361136,4541.2,4541.1,1.1848]
[1755423434155,0.2447,4540.9,4540.8,0.5595]
[1755423434344,2.3636,4540.9,4540.8,0.5595]
[1755423435557,2.3636,4540.9,4540.8,1.1848]
[1755423436050,1.7674,4540.9,4540.8,2.2875]
[1755423436352,2.3636,4540.9,4540.3,0.5595]
[1755423436655,2.3636,4540.4,4540.3,1.728]
[1755423436852,2.3636,4540.3,4540.2,0.2455]
[1755423437058,2.3636,4540.3,4540.2,2.2875]
[1755423437251,1.7674,4540.3,4540.2,2.2875]
[1755423439153,3.2078,4540.9,4539.8,0.44037]
[1755423439350,3.2078,4540.9,4539.9,1.4608]
[1755423439351,0.5227,4540.0,4539.9,1.4608]
[1755423439549,0.5227,4540.0,4539.9,1.5005]
[1755423439550,2.3197,4540.0,4539.9,1.5005]
[1755423439754,2.3197,4540.0,4539.9,1.1555]
[1755423439952,2.3197,4540.0,4539.4,1.0125]
[1755423440154,2.3197,4540.0,4539.4,1.3575]
[1755423440349,0.9206,4539.3,4538.5,3.2078]
[1755423440551,3.6862,4538.6,4537.8,1.89938402]
[1755423440754,1.5001,4538.5,4538.4,0.9047]
[1755423441058,2.3197,4538.5,4538.4,2.2622]
[1755423441757,1.7402,4538.5,4538.4,2.2622]
[1755423441955,0.5227,4538.5,4538.4,2.2622]
[1755423442256,0.5227,4538.1,4538.0,0.9047]
[1755423442456,1.7402,4538.1,4538.0,1.4608]
[1755423442663,2.3197,4538.1,4538.0,1.4608]
[1755423444051,0.2274,4537.8,4537.7,1.4008]
[1755423444258,1.3423,4537.8,4537.7,1.7061]
[1755423444862,1.3423,4537.8,4537.5,3.2078]
[1755423445154,0.6253,4537.5,4537.4,1.3575]
[1755423445363,2.3197,4537.5,4537.4,0.5561]
[1755423445953,2.3197,4537.5,4537.4,1.4608]
[1755423446157,2.3197,4537.5,4537.4,2.2622]
[1755423446664,2.3197,4537.5,4537.4,1.4608]
[1755423446861,2.3197,4537.2,4537.1,0.5561]
[1755423447057,2.3197,4537.2,4537.1,1.4608]
[1755423447255,3.4352,4537.5,4537.4,0.9047]
[1755423447456,0.8196,4538.0,4537.4,2.2622]
[1755423447757,1.5001,4538.0,4537.4,0.5561]
[1755423447963,2.3197,4537.5,4537.4,0.3725]
[1755423448163,1.5001,4537.3,4537.2,1.4608]
[1755423448360,2.3197,4537.3,4537.2,2.2622]
[1755423448752,0.2274,4537.3,4537.2,2.2622]
[1755423449059,1.7402,4538.0,4537.9,2.2622]
[1755423449659,0.2274,4538.0,4537.9,2.2622]
[1755423450656,0.022,4538.8,4537.9,2.2622]
[1755423450657,3.2078,4538.7,4537.9,0.9267]
[1755423450856,3.2078,4538.7,4537.6,3.2078]
[1755423450857,0.4784,4539.2,4538.1,1.3795]
[1755423451160,0.4784,4539.2,4539.0,0.5994]
[1755423451161,1.2618,4539.1,4539.0,0.5994]
[1755423451364,2.3197,4539.1,4539.0,2.2622]
[1755423451660,1.7402,4539.1,4539.0,2.2622]
[1755423451857,3.2078,4539.3,4539.1,1.0125]
[1755423452064,3.2078,4539.3,4538.6,0.44049]
[1755423452065,5.5275,4539.3,4539.2,2.2622]
[1755423453062,3.7305,4539.3,4539.2,2.2622]
[1755423453262,3.4352,4539.3,4539.2,2.2622]
[1755423453760,3.2078,4539.8,4539.2,2.2622]
[1755423453962,2.3197,4539.3,4539.2,2.2622]
[1755423454364,2.3197,4539.3,4538.7,0.5561]
[1755423454562,2.3197,4539.3,4539.2,0.5994]
[1755423454762,2.3197,4539.3,4539.2,1.4608]
[1755423454961,3.2078,4539.8,4539.2,2.2622]
[1755423455765,0.3412,4539.7,4539.2,2.2622]
[1755423455965,0.2953,4539.4,4539.3,0.8014]
[1755423456163,1.3423,4539.4,4539.3,2.2622]
[1755423456967,0.5227,4539.4,4539.3,2.2622]
[1755423457463,4.0717,4539.8,4539.7,2.2622]
[1755423457760,4.5501,4539.8,4539.7,2.2622]
[1755423457964,5.5275,4539.8,4539.7,2.2622]
[1755423458567,4.948,4539.8,4539.7,2.2622]
[1755423459564,3.7305,4539.8,4539.7,2.2622]
[1755423459764,3.2078,4539.8,4539.7,2.2622]
[1755423461272,3.4352,4539.8,4539.7,2.2622]
[1755423461565,4.948,4539.8,4539.7,2.2622]
[1755423461767,5.5275,4539.8,4539.7,2.2622]
[1755423464764,4.948,4539.8,4539.7,2.2622]
[1755423465170,0.5227,4539.8,4539.7,2.2622]
[1755423465368,0.2274,4539.8,4539.7,2.2622]
[1755423466866,0.5227,4539.8,4539.7,2.2622]
[1755423467372,0.8639,4539.8,4539.7,2.2622]
[1755423468277,3.2078,4540.3,4539.7,2.2622]
[1755423468578,4.5468,4540.3,4540.2,1.3287]
[1755423468778,4.8794,4540.3,4540.2,2.2623]
[1755423468977,3.4354,4540.3,4540.2,2.2623]
[1755423469177,0.2276,4540.3,4540.2,2.2623]
[1755423469374,0.7834,4540.7,4540.2,2.2623]
[1755423469574,0.7834,4540.7,4540.3,1.3678]
[1755423469778,1.4501,4540.7,4540.6,0.8945]
[1755423470080,3.2078,4540.9,4540.6,2.2623]
[1755423470275,3.2078,4540.9,4540.7,0.8945]
[1755423470472,3.2078,4540.9,4540.8,2.2623]
[1755423471284,0.7834,4542.2,4541.5,0.8945]
[1755423471285,4.096,4541.6,4541.5,0.8945]
[1755423471580,5.4574,4541.6,4541.5,2.2623]
[1755423472081,5.4574,4541.6,4540.7,0.44028]
[1755423472281,0.2276,4540.9,4540.8,2.2623]
[1755423472579,1.4662,4540.9,4540.8,2.2623]
[1755423472782,2.2496,4540.9,4540.8,2.2623]
[1755423472984,5.0066,4541.6,4541.5,1.8281]
[1755423473183,5.4574,4541.6,4541.5,2.2623]
[1755423474068,5.4574,4541.6,4541.5,0.8945]
[1755423474275,0.8882,4541.3,4541.2,2.2623]
[1755423474580,2.2496,4541.3,4541.2,2.2623]
[1755423477982,0.8882,4541.3,4541.2,2.2623]
[1755423478480,4.096,4542.1,4542.0,0.8945]
[1755423478684,5.4574,4542.1,4542.0,2.2623]
[1755423480380,3.2078,4542.1,4542.0,0.8945]
[1755423480581,2.2496,4542.2,4542.1,2.2623]
[1755423481385,0.8882,4542.2,4542.1,2.2623]
[1755423481890,2.2496,4542.2,4542.1,2.2623]
[1755423482385,0.578,4542.5,4542.1,0.9565]
[1755423482582,0.8882,4541.2,4541.1,1.4789]
[1755423482782,2.2496,4541.2,4541.1,1.9131]
[1755423482980,2.2496,4541.1,4541.0,0.5224]
[1755423483193,2.2496,4541.1,4541.0,2.2623]
[1755423483382,1.9491,4541.6,4541.5,0.5947]
[1755423483691,2.2496,4541.6,4541.5,2.2623]
[1755423483884,1.4662,4541.6,4540.8,6.842]
[1755423484084,2.2496,4540.9,4540.8,5.4701]
[1755423485885,0.8882,4540.9,4540.0,3.642]
[1755423486079,1.917,4540.1,4540.0,5.4701]
[1755423486284,2.2496,4540.1,4540.0,5.4701]
[1755423486479,2.2496,4540.1,4540.0,4.1023]
[1755423486780,2.2496,4540.1,4540.0,0.8945]
[1755423486984,2.2496,4540.1,4540.0,1.8281]
[1755423487183,2.2496,4540.1,4540.0,2.2623]
[1755423487384,3.2078,4540.5,4540.0,2.2623]
[1755423487584,0.8882,4540.5,4540.4,0.8945]
[1755423487785,0.8882,4540.5,4540.4,2.2623]
[1755423488187,2.2496,4540.5,4540.4,2.2623]
[1755423488386,3.2078,4541.0,4540.9,0.8945]
[1755423488387,4.4286,4541.0,4540.9,0.8945]
[1755423488691,5.64623217,4541.0,4540.5,0.9336]
[1755423488991,2.2496,4540.4,4540.3,4.1023]
[1755423489187,2.2496,4540.4,4540.3,5.4701]
[1755423490491,2.2496,4540.4,4540.3,3.2078]
[1755423490888,0.5877,4540.4,4540.3,4.1023]
[1755423491088,1.9491,4540.4,4540.3,5.4701]
[1755423491391,1.9491,4540.4,4540.3,3.2078]
[1755423491392,2.43852745,4540.4,4540.3,3.2078]
[1755423492291,2.43852745,4540.4,4540.3,3.5799]
[1755423492491,2.43852745,4540.4,4540.3,5.4701]
[1755423492882,0.578,4540.7,4540.3,5.4701]
[1755423493083,1.07713586,4540.6,4540.5,0.8945]
[1755423493288,1.07713586,4540.6,4540.5,2.2623]
[1755423493484,0.2276,4540.6,4540.5,2.2623]
[1755423493691,1.3614,4540.9,4540.5,0.8945]
[1755423493889,0.5281,4540.7,4540.6,0.5224]
[1755423494088,2.2496,4540.7,4540.6,2.2623]
[1755423494289,3.8684,4541.0,4540.9,0.6719]
[1755423494491,4.28496802,4541.0,4540.9,2.2623]
[1755423494696,3.2078,4541.0,4540.9,2.2623]
[1755423495294,3.7955,4541.0,4540.9,2.2623]
[1755423495494,4.6175832,4541.0,4540.9,2.2623]
[1755423495698,5.4574,4541.0,4540.9,2.2623]
[1755423496401,5.64639367,4541.0,4540.9,2.2623]
[1755423496699,4.096,4541.0,4540.9,2.2623]
[1755423497295,4.28503236,4541.0,4540.9,2.2623]
[1755423497696,5.60653236,4541.0,4540.9,2.2623]
[1755423498004,3.62443236,4541.0,4540.9,2.2623]
[1755423498199,3.2078,4541.0,4540.9,2.2623]
[1755423498801,2.241,4540.9,4540.8,0.2121]
[1755423499002,2.43008857,4540.9,4540.8,0.2121]
[1755423499200,2.43008857,4540.9,4540.8,0.904]
[1755423499496,2.43008857,4540.9,4540.8,2.2327]
[1755423501299,2.43008857,4540.9,4540.8,0.2121]
[1755423501702,0.7546,4540.8,4540.3,3.2078]
[1755423501898,3.2078,4541.0,4540.3,4.5617]
[1755423501899,2.241,4540.4,4540.3,4.5617]
[1755423502099,2.241,4540.4,4540.3,4.9091]
[1755423502301,2.241,4540.4,4540.3,5.4405]
[1755423502801,0.228,4540.4,4540.3,5.4405]
[1755423503200,0.6086,4540.4,4540.3,5.4405]
[1755423504007,2.241,4540.4,4540.3,5.4405]
[1755423504507,1.3215,4540.7,4540.3,5.4405]
[1755423504799,4.5566,4541.0,4540.9,0.5943]
[1755423505101,5.31263029,4541.0,4540.9,2.2327]
[1755423505307,5.63793029,4541.0,4540.9,2.2327]
[1755423508010,5.63795602,4541.0,4540.9,2.2327]
[1755423509510,5.63795602,4541.0,4540.5,1.3287]
[1755423509705,0.9195,4540.6,4540.5,1.4354]
[1755423510011,2.241,4540.6,4540.3,3.2078]
[1755423510208,2.241,4540.4,4540.3,3.7296]
[1755423510405,2.43024294,4540.4,4540.3,4.1118]
[1755423510606,2.43024294,4540.4,4540.3,4.9091]
[1755423510908,2.43024294,4540.4,4540.3,4.1118]
[1755423511108,2.43024294,4540.4,4540.3,5.4405]
[1755423513605,2.43024294,4540.4,4540.3,4.1118]
[1755423513801,2.241,4539.8,4539.7,3.2078]
[1755423514007,2.43024294,4539.8,4539.7,3.2078]
[1755423514209,2.43024294,4539.8,4539.7,5.4405]
[1755423517112,0.4293,4540.2,4539.7,4.1118]
[1755423517310,0.41726489,4540.1,4540.0,0.6919]
[1755423517512,0.41726489,4540.1,4540.0,2.2327]
[1755423517711,0.79784606,4540.1,4540.0,2.2327]
[1755423518110,2.43024606,4540.1,4540.0,2.2327]
[1755423519209,1.10874606,4540.1,4540.0,2.2327]
[1755423520316,0.18924606,4540.1,4540.0,2.2327]
[1755423521013,3.2078,4541.0,4539.7,3.2078]
[1755423521014,2.241,4540.4,4540.3,0.904]
[1755423521211,2.4301734,4540.4,4540.3,2.2327]
[1755423522513,2.241,4540.8,4540.7,0.5218]
[1755423522720,2.43015739,4540.8,4540.7,2.2327]
[1755423524417,2.241,4540.7,4540.6,0.904]
[1755423524719,2.43015739,4540.7,4540.6,2.2327]
[1755423525518,1.3215,4540.6,4539.3,3.22808402]
[1755423525818,2.241,4539.7,4539.6,5.4405]
[1755423526018,2.4302171,4539.7,4539.6,5.4405]
[1755423526314,2.241,4539.7,4539.2,0.3474]
[1755423526510,0.9195,4539.3,4539.1,3.7392]
[1755423526717,2.241,4539.2,4539.1,4.6432]
[1755423526911,2.241,4539.2,4539.1,5.4405]
[1755423531417,2.241,4539.2,4539.1,4.5269]
[1755423531614,2.241,4539.2,4539.1,5.4213]
[1755423532718,2.241,4539.2,4539.1,5.3881]
[1755423534518,2.241,4539.2,4539.1,3.2078]
[1755423534719,2.241,4539.2,4538.7,0.8429]
[1755423534920,3.2298,4539.7,4538.7,0.8429]
[1755423534921,0.8587,4538.8,4538.7,2.1872]
[1755423535221,2.201,4538.8,4538.7,2.1872]
[1755423540025,2.201,4538.8,4538.6,3.2078]
[1755423540230,2.201,4538.7,4538.6,5.395]
[1755423546232,2.201,4538.7,4538.6,4.1028]
[1755423546427,2.201,4538.7,4538.6,0.5293]
[1755423546627,2.201,4538.2,4538.1,5.395]
[1755423548135,2.201,4538.2,4538.1,4.5006]
[1755423548327,0.5643,4537.7,4537.6,4.3279]
[1755423548634,1.8557,4537.7,4537.6,4.1028]
[1755423548836,2.201,4537.7,4537.6,5.395]
[1755423549929,0.8983,4538.1,4537.6,5.395]
[1755423550131,2.201,4538.0,4537.9,1.7379]
[1755423550336,3.2078,4538.6,4538.1,0.4493]
[1755423550527,3.9971,4539.6,4538.6,0.022]
[1755423550734,3.2078,4539.6,4539.4,2.1872]
[1755423551031,3.2078,4539.6,4539.5,2.1872]
[1755423551437,0.8983,4539.9,4539.5,2.1872]
[1755423551634,0.8587,4539.7,4539.6,2.1872]
[1755423551838,2.201,4539.7,4539.6,2.1872]
[1755423552034,2.201,4539.7,4539.6,1.7379]
[1755423552236,2.201,4539.6,4539.5,0.895]
[1755423552539,2.201,4539.6,4538.8,3.2078]
[1755423552735,2.201,4539.0,4538.9,2.1872]
[1755423553839,2.201,4538.3,4538.2,4.417]
[1755423554045,2.201,4538.3,4538.2,4.1028]
[1755423554449,2.201,4538.3,4538.2,3.2078]
[1755423554651,2.3896307,4538.3,4538.2,3.2078]
[1755423555344,1.3423,4538.2,4537.7,3.2078]
[1755423555645,2.201,4537.8,4537.7,5.395]
[1755423557849,2.201,4537.8,4537.7,3.2078]
[1755423558047,2.201,4537.8,4537.7,4.5027]
[1755423558251,2.201,4537.8,4537.7,5.3591]
[1755423559650,0.8587,4537.8,4537.7,5.3591]
[1755423560150,2.1959,4537.8,4537.7,5.3591]
[1755423563052,0.219,4537.8,4537.7,5.3591]
[1755423563252,3.2078,4538.7,4537.7,4.0817]
[1755423563453,0.868,4537.9,4537.8,2.1513]
[1755423563757,2.2052,4537.9,4537.8,2.1513]
[1755423567051,0.868,4537.8,4537.3,1.2774]
[1755423567257,2.2052,4537.8,4537.7,2.1513]
[1755423567457,2.39384763,4537.8,4537.7,2.1513]
[1755423568558,2.2052,4537.8,4537.7,2.1513]
[1755423569458,0.4444,4538.1,4537.7,2.1513]
[1755423569656,0.39931955,4538.0,4537.9,0.2263]
[1755423569854,0.76411955,4538.0,4537.9,2.1513]
[1755423570054,2.39381955,4538.0,4537.9,2.1513]
[1755423570960,2.2052,4538.0,4537.9,2.1513]
[1755423571152,0.18862424,4538.0,4537.9,2.1513]
[1755423571553,0.5032,4538.7,4538.6,0.8739]
[1755423571752,0.4444,4538.5,4537.7,3.9561]
[1755423572058,1.1376,4537.8,4537.7,4.83]
[1755423572252,0.5755,4537.8,4537.7,4.83]
[1755423572447,0.5755,4537.8,4537.7,5.3591]
[1755423572753,1.3372,4538.7,4537.8,0.7483]
[1755423572954,1.29211088,4538.6,4538.5,0.2263]
[1755423573263,1.94941088,4538.6,4538.5,0.8739]
[1755423573557,2.39381088,4538.6,4538.5,2.1513]
[1755423573758,0.18861088,4538.6,4538.5,2.1513]
[1755423574155,1.7608,4539.1,4539.0,0.8739]
[1755423574356,1.7608,4539.1,4539.0,2.1513]
[1755423574357,2.39379007,4539.1,4539.0,2.1513]
[1755423575156,0.868,4539.1,4539.0,2.1513]
[1755423575549,1.4301,4539.1,4539.0,2.1513]
[1755423575755,0.868,4539.1,4538.4,0.3273]
[1755423575955,2.2052,4539.0,4538.9,0.8739]
[1755423577460,0.7751,4538.9,4538.5,1.2774]
[1755423577659,1.1376,4538.6,4538.5,2.1513]
[1755423577963,1.9127,4539.0,4538.9,2.1513]
[1755423578666,0.2107,4539.4,4539.3,0.8739]
[1755423578865,0.2107,4539.4,4539.3,2.1513]
[1755423579454,3.2078,4539.5,4539.3,2.1513]
[1755423579662,1.5479,4539.4,4538.8,0.421]
[1755423579961,0.868,4539.0,4538.9,2.1513]
[1755423580161,2.2052,4539.0,4538.9,2.1513]
[1755423580464,2.2052,4538.9,4538.8,2.1513]
[1755423580969,5.413,4539.5,4539.4,2.1513]
[1755423581656,0.4444,4539.8,4539.4,0.8739]
[1755423581855,2.2052,4539.8,4539.7,0.8739]
[1755423582055,0.868,4539.8,4539.7,2.1513]
[1755423582255,0.5755,4539.8,4539.7,2.1513]
[1755423582854,0.3307,4539.8,4538.8,0.8564]
[1755423583059,0.3307,4539.8,4538.9,1.2949]
[1755423583060,0.5755,4539.0,4538.9,1.2949]
[1755423583260,0.5755,4539.0,4538.9,2.1513]
[1755423583458,0.5755,4539.0,4538.9,5.3513]
[1755423583661,0.5755,4539.0,4538.9,2.1513]
[1755423584163,2.2052,4539.0,4538.9,2.1513]
[1755423584362,4.545,4540.1,4538.9,0.8739]
[1755423584568,5.413,4540.1,4540.0,2.1513]
[1755423584972,2.2052,4540.1,4540.0,2.1513]
[1755423585467,3.2078,4540.6,4538.5,1.10118]
[1755423585468,1.6431,4540.5,4540.4,0.8739]
[1755423585668,2.2052,4540.5,4540.4,2.1513]
[1755423585869,0.868,4540.5,4540.4,2.1513]
[1755423586064,1.7608,4540.5,4540.4,2.1513]
[1755423586270,2.2052,4540.5,4540.4,2.1513]
[1755423586773,0.868,4540.0,4539.9,1.6222]
[1755423587065,0.5755,4540.0,4539.7,3.2078]
[1755423587272,0.5032,4539.9,4539.8,2.1513]
[1755423587472,1.6759,4539.9,4539.8,2.1513]
[1755423587767,3.2078,4540.6,4540.0,0.4115]
[1755423587969,5.2783,4540.6,4540.5,2.1384]
[1755423588762,2.0705,4541.1,4541.0,0.8486]
[1755423588964,2.0705,4541.1,4541.0,2.1384]
[1755423589672,3.7592,4541.2,4541.1,2.1384]
[1755423589966,0.7405,4541.5,4541.1,2.1384]